bitfinex/quotes_SOLUSD_20220109
["timestamp","ask_amount","ask_price","bid_price","bid_amount"]
[1641754060745,1.96055609,144.24,144.23,1.8628963]
[1641754060945,4.96055609,144.24,144.23,1.8628963]
[1641754061643,53.96055609,144.24,144.23,1.8628963]
[1641754061845,52.0,144.24,144.23,1.8628963]
[1641754062645,51.29399405,144.24,144.23,1.8628963]
[1641754062844,2.29399405,144.24,144.23,1.8628963]
[1641754064544,29.983,144.24,144.23,1.8628963]
[1641754066143,1.983,144.24,144.23,1.8628963]
[1641754067644,30.983,144.24,144.23,1.8628963]
[1641754068946,32.94355609,144.24,144.23,1.8628963]
[1641754069145,30.96055609,144.24,144.23,1.8628963]
[1641754069644,29.0,144.24,144.23,1.8628963]
[1641754072549,30.96055609,144.24,144.23,1.8628963]
[1641754072747,31.21055609,144.24,144.23,1.8628963]
[1641754072948,34.21055609,144.24,144.23,1.8628963]
[1641754075551,31.21055609,144.24,144.23,1.8628963]
[1641754075852,2.21055609,144.24,144.23,1.8628963]
[1641754076251,2.21055609,144.24,144.23,7.92729622]
[1641754076252,0.25,144.24,144.23,7.92729622]
[1641754079054,0.25,144.24,144.23,1.8628963]
[1641754079555,3.69355609,144.25,144.23,7.92729622]
[1641754079755,1.96055609,144.25,144.23,7.92729622]
[1641754080356,31.10893155,144.26,144.23,7.92729622]
[1641754081160,29.14837546,144.26,144.23,7.92729622]
[1641754081357,1.733,144.25,144.23,7.92729622]
[1641754081857,1.733,144.25,144.23,4.89509627]
[1641754082055,1.733,144.25,144.23,1.8628963]
[1641754082460,3.69355609,144.25,144.23,1.8628963]
[1641754083058,36.25,144.24,144.23,1.8628963]
[1641754083258,38.21055609,144.24,144.23,1.8628963]
[1641754083661,38.21055609,144.24,144.14,38.27094997]
[1641754083859,3.0,144.23,144.13,1.95684997]
[1641754084060,114.45702586,144.23,144.13,1.95684997]
[1641754084458,1.78082586,144.22,144.13,1.95684997]
[1641754084859,1.96055609,144.18,144.08,9.95]
[1641754085058,4.734,144.17,144.08,9.95]
[1641754085863,116.6953,144.17,144.08,9.95]
[1641754086264,106.2851,144.17,144.08,9.95]
[1641754086460,106.2851,144.17,144.08,34.5939]
[1641754087260,116.6954,144.17,144.08,34.5939]
[1641754087660,116.6954,144.17,144.08,9.95]
[1641754087860,0.25,144.16,144.08,9.95]
[1641754088061,1.734,144.15,144.08,9.95]
[1641754088261,24.66494934,144.14,144.08,9.95]
[1641754088561,27.66494934,144.14,144.08,9.95]
[1641754089161,24.66494934,144.14,144.08,9.95]
[1641754089360,3.0,144.13,144.08,9.95]
[1641754090160,24.66494934,144.14,144.08,9.95]
[1641754090561,3.0,144.13,144.08,9.95]
[1641754090762,3.25,144.13,144.08,9.95]
[1641754090961,24.66494934,144.14,144.08,9.95]
[1641754091466,3.0,144.13,144.08,9.95]
[1641754093565,3.0,144.13,144.12,1.4454174]
[1641754094168,3.0,144.13,144.12,4.47761737]
[1641754094770,3.0,144.13,144.12,1.4454174]
[1641754095369,1.734,144.16,144.12,1.4454174]
[1641754095776,1.734,144.17,144.12,1.4454174]
[1641754102102,3.0,144.16,144.12,1.4454174]
[1641754102302,1.734,144.15,144.12,1.4454174]
[1641754102702,0.25,144.14,144.12,1.4454174]
[1641754103103,3.25,144.14,144.12,1.4454174]
[1641754106506,1.734,144.13,144.12,1.4454174]
[1641754107111,1.734,144.15,144.12,1.4454174]
[1641754109012,1.734,144.16,144.12,1.4454174]
[1641754109811,3.0,144.15,144.12,1.4454174]
[1641754110012,1.734,144.14,144.12,1.4454174]
[1641754110412,43.25,144.13,144.12,1.4454174]
[1641754110612,44.984,144.13,144.12,1.4454174]
[1641754111416,4.984,144.13,144.12,1.4454174]
[1641754112016,3.25,144.13,144.12,1.4454174]
[1641754112616,1.734,144.15,144.12,1.4454174]
[1641754112914,1.734,144.16,144.12,1.4454174]
[1641754114315,0.25,144.15,144.12,1.4454174]
[1641754114515,1.734,144.14,144.12,1.4454174]
[1641754114918,26.25,144.13,144.12,1.4454174]
[1641754115314,0.25,144.13,144.12,1.4454174]
[1641754115514,1.734,144.16,144.12,1.4454174]
[1641754116916,0.25,144.15,144.12,1.4454174]
[1641754117117,1.734,144.14,144.12,1.4454174]
[1641754118118,1.734,144.16,144.12,1.4454174]
[1641754121323,10.4134,144.14,144.12,1.4454174]
[1641754121523,76.734,144.13,144.12,1.4454174]
[1641754121726,64.4454174,144.12,144.07,1.734]
[1641754121925,1.734,144.11,144.07,1.734]
[1641754122124,30.35890711,144.1,144.05,1.95684997]
[1641754122325,1.735,144.09,144.05,1.95684997]
[1641754122528,10.4172,144.07,144.03,1.95684997]
[1641754122724,1.735,144.06,144.03,1.95684997]
[1641754122927,3.0,144.06,144.03,1.95684997]
[1641754123124,1.735,144.05,144.03,1.95684997]
[1641754123346,3.0,144.07,144.01,2.2156144]
[1641754123548,24.06126092,144.03,144.01,2.2156144]
[1641754123747,27.735,144.02,144.01,2.2156144]
[1641754123949,30.735,144.02,144.01,2.2156144]
[1641754125349,30.985,144.02,144.01,2.2156144]
[1641754125750,4.985,144.02,144.01,2.2156144]
[1641754125950,3.25,144.02,144.01,2.2156144]
[1641754126251,0.25,144.02,144.01,2.2156144]
[1641754127452,0.25,144.02,144.01,8.28001432]
[1641754127855,24.06126092,144.03,144.01,2.2156144]
[1641754129056,1.735,144.05,144.01,2.2156144]
[1641754129356,3.0,144.04,144.01,2.2156144]
[1641754129756,1.735,144.07,144.01,2.2156144]
[1641754129958,1.735,144.08,144.01,2.2156144]
[1641754130157,30.30720102,144.07,144.01,2.2156144]
[1641754130965,0.25,144.06,144.01,2.2156144]
[1641754131166,1.735,144.05,144.01,2.2156144]
[1641754132368,3.0,144.04,144.01,2.2156144]
[1641754132569,1.735,144.03,144.01,2.2156144]
[1641754133871,3.0,144.02,144.01,2.2156144]
[1641754134069,1.735,144.05,144.01,2.2156144]
[1641754134270,1.735,144.06,144.01,2.2156144]
[1641754134501,3.0,144.04,144.01,2.2156144]
[1641754134672,1.735,144.03,144.01,2.2156144]
[1641754134873,1.735,144.03,144.02,6.06439992]
[1641754135072,4.735,144.03,144.02,6.06439992]
[1641754135275,4.985,144.03,144.01,2.2156144]
[1641754137376,4.985,144.03,144.02,6.06439992]
[1641754137575,4.735,144.03,144.02,6.06439992]
[1641754137776,1.735,144.07,144.02,6.06439992]
[1641754137975,1.735,144.09,144.02,6.06439992]
[1641754138174,1.735,144.11,144.03,1.78082586]
[1641754138574,1.735,144.11,144.02,1.235]
[1641754138775,23.52546522,144.1,144.02,1.235]
[1641754138975,1.735,144.09,144.02,1.235]
[1641754139175,1.735,144.09,144.01,13.9006144]
[1641754139874,1.735,144.09,144.03,10.4121]
[1641754140979,1.735,144.09,144.03,18.3221]
[1641754141377,1.735,144.09,144.03,20.0571]
[1641754142377,0.0364687,144.09,144.03,20.0571]
[1641754142677,0.0364687,144.09,144.01,9.95]
[1641754142678,23.52546522,144.1,144.02,1.735]
[1641754142882,23.52546522,144.1,144.01,20.3634]
[1641754142883,1.735,144.09,144.01,10.4134]
[1641754143079,4.735,144.09,144.01,10.4134]
[1641754145281,4.735,144.09,144.0,9.95]
[1641754145983,1.735,144.09,144.02,151.02598996]
[1641754146182,1.4454174,144.12,144.03,9.95]
[1641754146383,14.00525889,144.17,144.07,10.4088]
[1641754146384,3.59445889,144.17,144.07,10.4088]
[1641754146585,3.59445889,144.17,144.1,1.735]
[1641754146783,3.7612181,144.2,144.11,71.95]
[1641754146984,3.7612181,144.2,144.12,27.23046208]
[1641754147186,3.7612181,144.2,144.13,9.95]
[1641754147391,3.7612181,144.2,144.13,21.85582586]
[1641754147586,3.7612181,144.2,144.16,10.403]
[1641754147786,30.79559592,144.23,144.16,27.42]
[1641754147992,30.79559592,144.23,144.16,29.20082586]
[1641754148186,1.733,144.26,144.16,29.20082586]
[1641754148386,1.733,144.26,144.17,3.25]
[1641754148586,1.733,144.27,144.19,10.4007]
[1641754148786,1.733,144.27,144.19,20.3507]
[1641754148987,1.733,144.27,144.19,9.95]
[1641754149186,30.8754867,144.26,144.19,9.95]
[1641754149386,1.733,144.25,144.19,9.95]
[1641754149590,1.983,144.25,144.19,9.95]
[1641754151096,1.733,144.29,144.2,0.25]
[1641754151296,1.733,144.29,144.21,9.95]
[1641754151495,1.733,144.31,144.21,9.95]
[1641754152095,28.32518415,144.3,144.21,9.95]
[1641754152295,1.733,144.29,144.21,9.95]
[1641754153693,3.51382586,144.29,144.21,9.95]
[1641754154194,1.733,144.29,144.21,9.95]
[1641754154798,1.78082586,144.28,144.21,9.95]
[1641754155096,1.733,144.27,144.21,9.95]
[1641754156307,3.51382586,144.27,144.18,9.95]
[1641754156507,3.0,144.26,144.13,1.733]
[1641754156708,1.733,144.25,144.13,1.733]
[1641754156907,1.733,144.25,144.14,3.0]
[1641754157127,26.3829572,144.24,144.13,1.733]
[1641754157327,1.733,144.23,144.13,1.733]
[1641754157627,1.733,144.23,144.14,15.18532586]
[1641754157826,1.733,144.23,144.14,25.38532586]
[1641754158028,1.733,144.23,144.15,1.78082586]
[1641754158227,1.733,144.23,144.15,3.51382586]
[1641754158429,1.733,144.23,144.16,12.95]
[1641754158629,1.733,144.23,144.16,14.73082586]
[1641754159028,1.733,144.23,144.17,10.4023]
[1641754159428,1.733,144.23,144.18,3.0]
[1641754159633,26.3829572,144.24,144.17,10.4023]
[1641754160531,26.3829572,144.24,144.16,9.95]
[1641754160731,1.733,144.23,144.16,9.95]
[1641754161134,1.733,144.23,144.17,3.0]
[1641754161534,0.25,144.22,144.16,9.95]
[1641754161734,1.733,144.21,144.16,9.95]
[1641754163137,1.733,144.23,144.16,9.95]
[1641754165240,0.25,144.22,144.16,9.95]
[1641754165439,1.733,144.21,144.16,9.95]
[1641754165939,26.3829572,144.24,144.16,9.95]
[1641754165940,0.25,144.2,144.16,9.95]
[1641754166142,1.733,144.19,144.16,9.95]
[1641754166340,1.733,144.19,144.17,6.06439992]
[1641754166542,0.25,144.22,144.17,6.06439992]
[1641754168142,0.25,144.22,144.18,3.0]
[1641754168943,0.25,144.22,144.17,3.0]
[1641754170346,1.733,144.21,144.17,3.0]
[1641754170745,1.733,144.21,144.16,9.95]
[1641754170946,0.25,144.2,144.16,9.95]
[1641754171145,1.733,144.23,144.16,9.95]
[1641754171447,0.25,144.22,144.16,9.95]
[1641754171646,1.733,144.21,144.16,9.95]
[1641754172246,1.733,144.21,144.13,9.95]
[1641754172646,1.733,144.21,144.13,11.73082586]
[1641754173846,1.733,144.21,144.09,9.95]
[1641754174049,4.78082586,144.2,144.07,1.734]
[1641754174246,1.734,144.19,144.04,9.95]
[1641754174447,3.51482586,144.19,144.04,9.95]
[1641754174649,14.73082586,144.18,144.04,9.95]
[1641754174850,32.30363291,144.17,144.04,9.95]
[1641754175049,3.0,144.16,144.02,46.2689]
[1641754175247,3.0,144.16,144.01,9.95]
[1641754175248,10.4149,144.11,144.01,9.95]
[1641754175448,1.735,144.1,144.01,9.95]
[1641754175648,1.735,144.1,144.02,3.0]
[1641754175880,1.735,144.1,144.01,9.95]
[1641754176177,31.43308665,144.09,144.01,9.95]
[1641754176377,1.735,144.08,144.01,9.95]
[1641754177476,31.43308665,144.09,144.01,9.95]
[1641754177876,0.25,144.08,144.01,20.3639]
[1641754178077,0.25,144.08,144.01,9.95]
[1641754179081,1.735,144.07,144.01,9.95]
[1641754179779,31.43308665,144.09,144.01,9.95]
[1641754179780,1.735,144.08,144.01,9.95]
[1641754181182,1.735,144.08,143.98,57.2449]
[1641754181380,1.735,144.08,143.98,67.6603]
[1641754181581,0.25,144.07,143.99,0.25]
[1641754181784,0.25,144.07,143.98,9.95]
[1641754181983,1.735,144.06,143.98,9.95]
[1641754182782,1.735,144.06,143.98,20.3662]
[1641754183084,1.735,144.06,143.98,9.95]
[1641754185385,1.735,144.07,143.98,9.95]
[1641754186185,1.735,144.07,143.99,0.25]
[1641754186385,1.735,144.08,144.01,23.16111107]
[1641754186585,1.735,144.11,144.02,1.735]
[1641754186787,1.735,144.11,144.02,1.985]
[1641754187086,1.735,144.11,144.02,9.365]
[1641754187486,31.26980256,144.11,144.02,9.365]
[1641754187786,31.26980256,144.11,144.02,19.7778]
[1641754188388,31.26980256,144.11,144.02,29.7278]
[1641754189390,31.26980256,144.11,144.02,29.4778]
[1641754190392,31.26980256,144.11,144.03,0.25]
[1641754190791,0.25,144.1,144.03,10.6625]
[1641754190991,0.25,144.1,144.04,1.735]
[1641754191393,1.735,144.11,144.05,0.25]
[1641754191593,1.735,144.15,144.06,1.735]
[1641754191795,1.734,144.17,144.05,0.25]
[1641754191998,3.51482586,144.17,144.05,0.25]
[1641754192393,28.75382054,144.16,144.07,10.4096]
[1641754192693,1.984,144.15,144.03,4.734]
[1641754192894,1.984,144.15,144.03,11.684]
[1641754193093,3.76482586,144.15,144.03,11.684]
[1641754194395,3.76482586,144.15,144.03,9.95]
[1641754194796,14.17682586,144.15,144.03,9.95]
[1641754195198,11.73082586,144.14,144.01,1.735]
[1641754195397,1.735,144.13,144.0,97.7704]
[1641754195595,1.735,144.13,144.01,0.25]
[1641754195996,3.0,144.12,144.0,9.95]
[1641754196197,25.96819943,144.1,144.0,9.95]
[1641754196397,1.735,144.09,144.0,9.95]
[1641754196598,4.735,144.09,144.0,9.95]
[1641754197401,4.735,144.09,144.01,0.25]
[1641754197598,4.735,144.09,144.01,1.985]
[1641754198700,4.735,144.09,144.01,1.735]
[1641754198900,1.735,144.09,144.01,1.735]
[1641754199101,0.25,144.08,144.01,1.735]
[1641754199300,1.735,144.07,144.01,1.735]
[1641754199702,1.735,144.09,144.01,1.735]
[1641754200101,1.735,144.09,144.01,12.1488]
[1641754201702,1.735,144.09,144.01,1.735]
[1641754202110,1.735,144.09,144.0,9.95]
[1641754202511,1.735,144.09,144.01,0.25]
[1641754202711,1.735,144.13,144.02,9.95]
[1641754202912,1.735,144.13,144.03,2.245]
[1641754203209,1.735,144.13,144.03,22.25282586]
[1641754203410,1.735,144.16,144.03,22.25282586]
[1641754203710,31.69277299,144.16,144.04,26.53351358]
[1641754203913,1.734,144.15,144.07,10.4095]
[1641754204115,1.734,144.15,144.07,18.5425]
[1641754204310,31.69277299,144.16,144.08,1.984]
[1641754204511,31.69277299,144.16,144.08,4.984]
[1641754204711,31.69277299,144.16,144.07,9.95]
[1641754205111,1.734,144.15,144.07,9.95]
[1641754206516,1.734,144.15,144.07,20.3596]
[1641754206715,1.734,144.15,144.08,0.25]
[1641754206916,31.69277299,144.16,144.08,1.984]
[1641754207115,31.69277299,144.16,144.08,0.25]
[1641754207315,1.734,144.19,144.09,1.734]
[1641754207520,1.734,144.19,144.09,1.804]
[1641754207717,1.734,144.19,144.09,11.754]
[1641754207918,1.734,144.19,144.1,0.26]
[1641754208319,1.734,144.19,144.11,0.07]
[1641754208924,1.734,144.19,144.12,10.4058]
[1641754209320,1.734,144.19,144.13,0.25]
[1641754209736,1.734,144.24,144.13,0.25]
[1641754209936,81.4292,144.24,144.13,10.6552]
[1641754210138,81.4292,144.24,144.14,1.733]
[1641754210535,30.70994973,144.23,144.15,0.25]
[1641754210735,1.733,144.22,144.15,0.25]
[1641754210935,1.983,144.22,144.15,10.6536]
[1641754211137,1.733,144.22,144.15,10.6536]
[1641754212136,1.733,144.22,144.14,1.733]
[1641754212337,1.733,144.22,144.13,9.95]
[1641754212536,0.25,144.21,144.13,9.95]
[1641754212739,1.734,144.2,144.13,9.95]
[1641754213137,1.734,144.22,144.13,9.95]
[1641754213338,1.734,144.22,144.14,10.6542]
[1641754213837,1.734,144.22,144.13,9.95]
[1641754214336,3.51482586,144.22,144.13,9.95]
[1641754214937,13.92182586,144.22,144.13,9.95]
[1641754215137,12.141,144.22,144.13,9.95]
[1641754216139,12.141,144.22,144.1,24.3264]
[1641754216339,12.141,144.22,144.09,20.3582]
[1641754217345,12.141,144.22,144.1,6.51482586]
[1641754217747,12.141,144.22,144.11,0.25]
[1641754218148,3.0,144.21,144.11,0.25]
[1641754218348,12.1425,144.2,144.11,0.25]
[1641754219048,0.25,144.19,144.1,12.1414]
[1641754219248,1.734,144.18,144.1,1.734]
[1641754219547,10.4112,144.16,144.1,1.734]
[1641754219748,1.734,144.15,144.1,1.734]
[1641754220347,1.734,144.15,144.06,30.80990463]
[1641754220550,27.53662054,144.16,144.07,1.984]
[1641754221051,27.53662054,144.16,144.07,1.734]
[1641754221454,1.734,144.15,144.07,10.4092]
[1641754222253,1.734,144.15,144.08,0.25]
[1641754222553,1.734,144.15,144.08,10.6588]
[1641754223952,27.53662054,144.16,144.08,10.6588]
[1641754224252,27.53662054,144.16,144.06,37.0096]
[1641754224452,1.734,144.15,144.07,3.0]
[1641754227062,1.734,144.15,144.06,35.2763]
[1641754227456,1.734,144.15,144.07,0.25]
[1641754227659,1.734,144.15,144.07,1.984]
[1641754228368,1.734,144.15,144.07,12.1433]
[1641754228559,1.734,144.15,144.07,10.4093]
[1641754229859,27.53662054,144.16,144.08,0.25]
[1641754230061,27.53662054,144.16,144.08,10.6586]
[1641754230259,27.53662054,144.16,144.08,33.30081854]
[1641754231061,1.734,144.17,144.08,33.30081854]
[1641754231865,1.734,144.17,144.08,10.6586]
[1641754232162,1.734,144.17,144.08,0.25]
[1641754232563,1.734,144.17,144.07,4.984]
[1641754233066,24.29691264,144.16,144.07,4.984]
[1641754233866,24.29691264,144.16,144.07,15.3935]
[1641754236492,24.29691264,144.16,144.07,15.1435]
[1641754238598,1.734,144.15,144.07,15.1435]
[1641754238797,1.734,144.15,144.07,12.1435]
[1641754239400,1.734,144.15,144.07,1.734]
[1641754240200,0.25,144.14,144.07,1.734]
[1641754240502,1.734,144.13,144.05,10.4104]
[1641754240702,1.734,144.13,144.06,3.0]
[1641754240902,1.734,144.17,144.07,67.734]
[1641754241104,5.4952181,144.2,144.07,75.125]
[1641754241304,5.4952181,144.2,144.08,13.21]
[1641754241601,3.7612181,144.2,144.09,1.734]
[1641754241804,3.7612181,144.2,144.1,9.95]
[1641754242105,25.34349845,144.19,144.1,13.2]
[1641754242302,23.60949845,144.19,144.1,13.2]
[1641754242503,23.60949845,144.19,144.11,1.734]
[1641754242706,1.734,144.23,144.13,10.4046]
[1641754243303,0.25,144.22,144.13,10.4046]
[1641754243503,1.734,144.21,144.13,10.4046]
[1641754243705,23.72181054,144.21,144.14,1.984]
[1641754243903,23.72181054,144.21,144.14,12.3884]
[1641754244104,23.72181054,144.21,144.14,10.6544]
[1641754245606,23.72181054,144.21,144.14,10.7244]
[1641754245807,3.69814537,144.23,144.14,10.7244]
[1641754246007,3.69814537,144.23,144.15,1.733]
[1641754246209,3.69814537,144.23,144.15,12.1368]
[1641754246210,1.734,144.23,144.15,12.1368]
[1641754246407,1.734,144.23,144.16,0.25]
[1641754246608,100.62974537,144.24,144.16,0.25]
[1641754246808,22.84386768,144.23,144.16,0.25]
[1641754247807,22.84386768,144.23,144.16,10.6529]
[1641754249608,22.84386768,144.23,144.16,10.4029]
[1641754249808,22.84386768,144.23,144.15,12.1367]
[1641754250011,22.84386768,144.23,144.16,0.25]
[1641754250309,24.57686768,144.23,144.16,0.25]
[1641754250709,24.57686768,144.23,144.15,1.733]
[1641754251008,24.57686768,144.23,144.14,22.0869]
[1641754251209,24.57686768,144.23,144.15,3.0]
[1641754252110,24.57686768,144.23,144.14,22.0869]
[1641754252311,24.57686768,144.23,144.14,20.3539]
[1641754252611,24.57686768,144.23,144.14,9.95]
[1641754255813,24.57686768,144.23,144.14,20.3544]
[1641754256916,24.57686768,144.23,144.12,12.1384]
[1641754257116,3.25,144.22,144.12,1.733]
[1641754257416,1.734,144.21,144.12,1.733]
[1641754257616,3.0,144.2,144.12,1.733]
[1641754257917,10.4098,144.18,144.12,1.733]
[1641754258117,24.47460504,144.16,144.12,1.733]
[1641754258320,1.734,144.15,144.12,1.733]
[1641754258517,24.47460504,144.16,144.07,1.734]
[1641754258717,24.47460504,144.16,144.08,0.25]
[1641754259918,24.47460504,144.16,144.07,1.734]
[1641754260119,1.734,144.15,144.05,1.86307501]
[1641754260519,1.734,144.15,144.06,3.0]
[1641754260818,1.734,144.15,144.05,1.86307501]
[1641754261019,0.25,144.14,144.03,60.05337501]
[1641754261220,1.735,144.13,144.04,3.25]
[1641754261422,1.735,144.13,144.04,13.6617]
[1641754262856,1.735,144.13,144.04,3.0]
[1641754263258,1.735,144.13,144.03,11.684]
[1641754263458,1.735,144.13,144.03,9.95]
[1641754263959,12.1483,144.13,144.01,1.735]
[1641754264159,3.0,144.12,144.01,1.735]
[1641754264358,1.735,144.11,144.02,3.0]
[1641754264759,1.735,144.14,144.03,1.735]
[1641754264960,1.735,144.14,144.03,10.4123]
[1641754265159,1.735,144.14,144.02,1.78082586]
[1641754265160,1.735,144.14,144.02,11.73082586]
[1641754265361,1.735,144.14,144.04,1.78082586]
[1641754265559,1.735,144.14,144.05,20.66296371]
[1641754265959,1.735,144.14,144.03,12.1458]
[1641754266158,1.735,144.14,144.03,38.5947]
[1641754266361,1.735,144.14,144.03,38.3447]
[1641754266961,1.735,144.14,144.03,67.35579565]
[1641754267260,1.735,144.14,144.03,65.62179565]
[1641754269362,0.25,144.13,144.03,65.62179565]
[1641754269559,1.735,144.12,144.03,65.62179565]
[1641754269760,1.735,144.14,144.04,11.98082586]
[1641754269960,1.735,144.15,144.07,10.4095]
[1641754270163,1.735,144.15,144.07,20.3595]
[1641754270361,1.734,144.17,144.08,0.25]
[1641754270760,1.734,144.17,144.07,11.73082586]
[1641754270961,0.25,144.16,144.07,11.73082586]
[1641754271162,1.734,144.15,144.07,11.73082586]
[1641754271564,27.26621601,144.15,144.07,20.359]
[1641754272365,27.26621601,144.15,144.07,9.95]
[1641754272764,1.734,144.14,144.07,9.95]
[1641754274768,1.734,144.14,144.05,22.9547]
[1641754274967,0.25,144.13,144.06,3.0]
[1641754275168,1.734,144.12,144.05,22.9547]
[1641754275871,1.734,144.12,144.06,0.25]
[1641754276068,1.735,144.14,144.06,0.25]
[1641754276270,1.735,144.14,144.06,10.6603]
[1641754276568,1.735,144.14,144.06,10.4103]
[1641754277370,1.734,144.16,144.06,10.4103]
[1641754277570,1.734,144.17,144.06,12.19112586]
[1641754277970,1.734,144.17,144.07,3.0]
[1641754278170,24.68173047,144.17,144.08,10.4089]
[1641754279673,24.68173047,144.17,144.07,3.0]
[1641754279871,24.68173047,144.17,144.08,0.25]
[1641754280974,24.68173047,144.17,144.07,0.25]
[1641754281173,0.25,144.16,144.06,13.4097]
[1641754281473,1.734,144.15,144.06,13.4097]
[1641754281874,1.734,144.15,144.06,23.3597]
[1641754283479,1.734,144.15,144.07,0.25]
[1641754284782,1.734,144.15,144.07,10.6596]
[1641754284979,1.734,144.16,144.07,10.6596]
[1641754286582,1.734,144.16,144.07,10.4096]
[1641754287386,1.734,144.16,144.08,3.0]
[1641754287585,1.734,144.16,144.08,13.4088]
[1641754288084,1.734,144.16,144.08,3.0]
[1641754288514,0.25,144.15,144.08,3.0]
[1641754288712,1.734,144.14,144.08,3.0]
[1641754288914,1.734,144.14,144.07,3.0]
[1641754290415,1.734,144.14,144.05,1.86307501]
[1641754291213,1.734,144.16,144.05,1.86307501]
[1641754291615,3.0,144.15,144.05,1.86307501]
[1641754291817,1.96414537,144.12,144.03,9.95]
[1641754292015,1.735,144.11,144.03,9.95]
[1641754292215,1.985,144.11,144.03,9.95]
[1641754292420,0.25,144.11,144.03,9.95]
[1641754292717,1.735,144.1,144.03,9.95]
[1641754292916,0.25,144.09,144.03,9.95]
[1641754294715,0.25,144.09,144.03,20.3623]
[1641754295316,29.52667562,144.11,144.03,20.3623]
[1641754295515,0.25,144.1,144.03,20.3623]
[1641754296616,0.25,144.1,144.03,9.95]
[1641754296617,1.735,144.09,144.03,9.95]
[1641754297218,1.735,144.1,144.03,9.95]
[1641754299021,0.25,144.09,143.99,114.30647501]
[1641754299223,1.735,144.08,143.99,38.06077501]
[1641754299620,3.0,144.07,143.99,38.06077501]
[1641754299820,1.735,144.06,143.99,36.1977]
[1641754300022,1.735,144.08,143.99,36.1977]
[1641754302428,1.735,144.08,143.99,34.4627]
[1641754302929,12.1515,144.08,143.99,34.4627]
[1641754303327,12.1515,144.08,143.99,9.95]
[1641754304628,0.25,144.07,143.99,9.95]
[1641754304835,1.735,144.06,143.99,9.95]
[1641754305238,98.5427,144.1,144.0,1.985]
[1641754305433,25.7668,144.1,144.0,34.4524]
[1641754305636,24.0318,144.1,144.0,34.4524]
[1641754305839,24.0318,144.1,144.0,34.2024]
[1641754306033,100.8303,144.1,144.0,44.6167]
[1641754306637,1.735,144.09,144.01,3.0]
[1641754307164,12.1507,144.09,144.01,3.0]
[1641754307364,0.25,144.08,144.01,3.0]
[1641754308664,11.2355123,144.09,144.01,3.0]
[1641754308864,11.2355123,144.09,144.0,32.4674]
[1641754309070,11.2355123,144.09,144.0,9.95]
[1641754309265,11.2355123,144.09,143.99,1.735]
[1641754309465,10.4195,144.04,143.99,1.735]
[1641754309664,1.735,144.03,143.97,1.86307501]
[1641754309865,23.05170262,144.02,143.97,1.86307501]
[1641754310471,23.05170262,144.02,143.93,11.73082586]
[1641754310671,1.736,144.01,143.93,9.95]
[1641754311870,1.736,144.01,143.91,95.16307501]
[1641754312171,3.0,144.0,143.91,1.86307501]